{"text_format":"1","workbook":"xlsx","n_sheets":3,"sheets":["Лист1","Лист2","Лист3"],"not_rendered":{"charts":0,"images":0,"macros":1,"external_links":0,"defined_names":0,"comments":0,"pivot_tables":0},"unopened":[],"bounds":{"document_bytes":16777216,"sheet_cells":100000,"rows_first":2000,"rows_last":500,"rows_between":2000,"halvings":0,"cell_chars":16384,"cell_head_chars":4096},"cells_cut":0,"cells_raw":0,"read":"whole","date_system":"1900"}

{"sheet":"Лист1","index":0,"n_rows":71,"n_cols":3,"rows_kept":71,"cut":false,"hidden":false,"merged":[[1,0,6,0],[8,0,23,0],[25,0,46,0]]}
["Статус","компания","Дата встречи план"]
["Продления","Домострой, ООО, торговая компания","2014-08-04"]
[null,"Контур, торгово-монтажная фирма"]
[null,"Медикал Он Груп-Оренбург, ООО, международный медицинский центр","2014-08-04"]
[null,"Трубосервис Оренбург, ООО, торговая компания","2014-08-11"]
[]
[]
["Продления итого"]
["Рассрочки","\"МебельДизайнИнвест\" Общество с ограниченной ответственностью"]
[null,"Индивидуальный предприниматель Жданов А.С"]
[null,"Индивидуальный предприниматель Чересов Юрий Анатольевич страйк","2014-08-04"]
[null,"ИП Андреев В.А.","2014-08-05"]
[null,"ИП Вербицкая Ангелина Денисовна"]
[null,"ИП Верюжский Игорь Владимирович V8","2014-08-05"]
[null,"ИП Попова Галина Николаевна"]
[null,"ИП Рубанникова Э.М."]
[null,"Общество с ограниченной ответственностью \"КОМПАНИЯ \"ДИСКАВЕРИ\""]
[null,"Общество с ограниченной ответственностью \"МегаАвтоКомплекс\""]
[null,"ООО \"Ковент Оренбург\""]
[null,"ООО \"Пятачок\""]
[null,"ООО \"Содружество регион\""]
[null,"ООО \"Мир Кровли\""]
[]
[]
["Рассрочки итого"]
["Наработки","Про суши, доставка суши ","2014-08-16"]
[null,"Добрый хомяк, пицца"]
[null,"Тенториум","2014-08-20"]
[null,"Рина","2014-08-11"]
[null,"Жалюзист","2014-08-16"]
[null,"Фрактал","2014-08-16"]
[null,"Автомобилист, автошкола","2014-08-16"]
[null,"Орскнефтеснаб масла","2014-08-16"]
[null,"Бюро путешествий","2014-08-17"]
[null,"Грандшина","2014-08-20"]
[null,"Страна стройных"]
[null,"приоритет ","2014-08-04"]
[null,"промарматура","2014-08-07"]
[null,"аквастиль","2014-08-05"]
[null,"Новые двери","2014-08-06"]
[null,"мои путишествия","2014-08-06"]
[null,"натуральная дверь","2014-08-07"]
[null,"Аква  сантехника","2014-08-07"]
[null,"бриг сб","2014-08-05"]
[null,"совет да любовь, свадебное ателье","2014-08-07"]
[]
[]
[]
[]
["2014-08-01",{"$f":"VLOOKUPCOUPLE($B$34:$C$47,2,A50,1,\", \")","v":""}]
["2014-08-02",{"$f":"VLOOKUPCOUPLE($B$34:$C$47,2,A51,1,\", \")","v":""}]
["2014-08-03",""]
["2014-08-04","приоритет "]
["2014-08-05","аквастиль, бриг сб"]
["2014-08-06","Новые двери, мои путишествия"]
["2014-08-07","промарматура, натуральная дверь, Аква  сантехника, совет да любовь, свадебное ателье"]
["2014-08-08",""]
["2014-08-09",""]
["2014-08-10",""]
["2014-08-11",""]
["2014-08-12",""]
["2014-08-13",""]
["2014-08-14",""]
["2014-08-15",""]
["2014-08-16",""]
["2014-08-17","Бюро путешествий"]
["2014-08-18",""]
["2014-08-19",""]
["2014-08-20","Грандшина"]
["2014-08-21",""]
["2014-08-22",""]

{"sheet":"Лист2","index":1,"n_rows":0,"n_cols":0,"rows_kept":0,"cut":false,"hidden":false,"merged":[]}

{"sheet":"Лист3","index":2,"n_rows":0,"n_cols":0,"rows_kept":0,"cut":false,"hidden":false,"merged":[]}